fUSD/lending_fUSD_20240519
["ID","MTS","AMOUNT","RATE_DAILY","PERIOD"]
[327472104,1716097845429,-500.0,0.00027945,2]
[327472105,1716097845441,-500.0,0.00027945,2]
[327472106,1716097845451,-500.0,0.00027945,2]
[327472107,1716097845460,-500.0,0.00027945,2]
[327472108,1716097845470,-500.0,0.00027945,2]
[327472109,1716097845480,-500.0,0.00027945,2]
[327472110,1716097845490,-500.0,0.00027945,2]
[327472111,1716097845500,-520.16,0.00027945,2]
[327472112,1716097845510,-500.0,0.00027945,2]
[327472113,1716097845519,-500.0,0.00027945,2]
[327472114,1716097845529,-500.0,0.00027945,2]
[327472115,1716097845539,-500.0,0.00027945,2]
[327472116,1716097845548,-500.0,0.00027945,2]
[327472117,1716097845557,-500.0,0.00027945,2]
[327472118,1716097845567,-500.0,0.00027945,2]
[327472119,1716097845577,-500.0,0.00027945,2]
[327472120,1716097845589,-500.0,0.00027945,2]
[327472121,1716097845598,-500.0,0.00027945,2]
[327472122,1716097845608,-286.49095441,0.00027945,2]
[327472123,1716097845618,-500.0,0.00027945,2]
[327472124,1716097845627,-500.0,0.00027945,2]
[327472125,1716097845637,-500.0,0.00027945,2]
[327472126,1716097845646,-500.0,0.00027945,2]
[327472127,1716097845656,-500.0,0.00027945,2]
[327472128,1716097845665,-212.10530192,0.00027945,2]
[327472129,1716097845674,-621.67,0.00027945,2]
[327472130,1716097845684,-500.0,0.00027945,2]
[327472131,1716097845693,-500.0,0.00027945,2]
[327472132,1716097845702,-500.0,0.00027945,2]
[327472133,1716097845711,-516.49,0.00027945,2]
[327472134,1716097845721,-500.0,0.00027945,2]
[327472135,1716097845730,-500.0,0.00027945,2]
[327472136,1716097845740,-500.0,0.00027945,2]
[327472137,1716097845749,-500.0,0.00027945,2]
[327472138,1716097845759,-500.0,0.00027945,2]
[327472139,1716097845768,-500.0,0.00027945,2]
[327472140,1716097845816,-500.0,0.00027945,2]
[327472141,1716097845825,-500.0,0.00027945,2]
[327472142,1716097845835,-500.0,0.00027945,2]
[327472143,1716097845848,-500.0,0.00027945,2]
[327472144,1716097845858,-1026.46,0.00027945,2]
[327472145,1716097845867,-675.45,0.00027945,2]
[327472146,1716097845876,-523.84,0.00027945,2]
[327472147,1716097845886,-500.0,0.00027945,2]
[327472148,1716097845897,-500.0,0.00027945,2]
[327472149,1716097845906,-549.94177454,0.00027945,2]
[327472150,1716097845915,-2856.35,0.00027945,2]
[327472151,1716097845925,-500.0,0.00027945,2]
[327472152,1716097845935,-500.0,0.00027945,2]
[327472153,1716097845944,-500.0,0.00027945,2]
[327472154,1716097845953,-500.0,0.00027945,2]
[327472155,1716097845962,-500.0,0.00027945,2]
[327472156,1716097845972,-500.0,0.00027945,2]
[327472157,1716097845981,-500.0,0.00027945,2]
[327472158,1716097845990,-500.0,0.00027945,2]
[327472159,1716097845999,-519.47,0.00027945,2]
[327472160,1716097846009,-500.0,0.00027945,2]
[327472161,1716097846018,-2380.12,0.00027945,2]
[327472162,1716097846028,-500.0,0.00027945,2]
[327472163,1716097846037,-500.0,0.00027945,2]
[327472164,1716097846046,-1424.95,0.00027945,2]
[327472165,1716097846055,-729.91,0.00027945,2]
[327472166,1716097846064,-500.0,0.00027945,2]
[327472167,1716097846075,-388.85563028,0.00027945,2]
[327472168,1716097846086,-740.3,0.00027945,2]
[327472169,1716097846095,-6211.14,0.00027945,2]
[327472170,1716097846104,-2054.05,0.00027945,2]
[327472171,1716097846114,-760.73,0.00027945,2]
[327472172,1716097846123,-748.91,0.00027945,2]
[327472173,1716097846132,-553.05126179,0.00027945,2]
[327472174,1716097846142,-1441.16,0.00027945,2]
[327472175,1716097846151,-500.0,0.00027945,2]
[327472176,1716097846160,-500.0,0.00027945,2]
[327472177,1716097846169,-514.11,0.00027945,2]
[327472178,1716097846179,-655.5,0.00027945,2]
[327472179,1716097846188,-558.16,0.00027945,2]
[327472180,1716097846197,-5402.61,0.00027945,2]
[327472181,1716097846206,-500.0,0.00027945,2]
[327472182,1716097846214,-573.6,0.00027945,2]
[327472183,1716097846223,-500.0,0.00027945,2]
[327472184,1716097846232,-500.0,0.00027945,2]
[327472185,1716097846241,-465.71745892,0.00027945,2]
[327472186,1716097846251,-682.9,0.00027945,2]
[327472187,1716097846259,-660.13,0.00027945,2]
[327472188,1716097846268,-500.0,0.00027945,2]
[327472189,1716097846277,-833.24,0.00027945,2]
[327472190,1716097846286,-500.0,0.00027945,2]
[327472191,1716097846295,-1211.35,0.00027945,2]
[327472192,1716097846304,-544.17,0.00027945,2]
[327472193,1716097846314,-500.0,0.00027945,2]
[327472194,1716097846323,-500.0,0.00027945,2]
[327472195,1716097846334,-971.5,0.00027945,2]
[327472196,1716097846344,-679.99,0.00027945,2]
[327472197,1716097846354,-500.0,0.00027945,2]
[327472198,1716097846363,-500.0,0.00027945,2]
[327472199,1716097846373,-972.91,0.00027945,2]
[327472200,1716097846382,-500.0,0.00027945,2]
[327472201,1716097846392,-500.0,0.00027945,2]
[327472202,1716097846401,-891.78,0.00027945,2]
[327472203,1716097846410,-677.56,0.00027945,2]
[327472204,1716097846419,-897.23,0.00027945,2]
[327472205,1716097846428,-719.95,0.00027945,2]
[327472206,1716097846438,-920.98,0.00027945,2]
[327472207,1716097846447,-644.19,0.00027945,2]
[327472208,1716097846456,-158.72578785,0.00027945,2]
[327472209,1716097846465,-218.80881171,0.00027945,2]
[327472210,1716097846475,-500.0,0.00027945,2]
[327472211,1716097846484,-500.0,0.00027945,2]
[327472212,1716097846493,-500.0,0.00027945,2]
[327472213,1716097846503,-500.0,0.00027945,2]
[327472214,1716097846512,-535.73,0.00027945,2]
[327472215,1716097846521,-682.8,0.00027945,2]
[327472216,1716097846530,-500.0,0.00027945,2]
[327472217,1716097846540,-1095.22,0.00027945,2]
[327472218,1716097846550,-500.0,0.00027945,2]
[327472219,1716097846559,-500.0,0.00027945,2]
[327472220,1716097846568,-254.4122806,0.00027945,2]
[327472221,1716097846577,-500.0,0.00027945,2]
[327472222,1716097846588,-798.27,0.00027945,2]
[327472223,1716097846597,-3746.93,0.00027945,2]
[327472224,1716097846606,-719.23,0.00027945,2]
[327472225,1716097846615,-500.0,0.00027945,2]
[327472226,1716097846624,-500.0,0.00027945,2]
[327472227,1716097846634,-661.45,0.00027945,2]
[327472228,1716097846643,-746.57,0.00027945,2]
[327472229,1716097846653,-500.0,0.00027945,2]
[327472230,1716097846662,-619.97,0.00027945,2]
[327472231,1716097846671,-442.62510628,0.00027945,2]
[327472232,1716097846680,-1395.55,0.00027945,2]
[327472233,1716097846689,-604.05,0.00027945,2]
[327472234,1716097846698,-500.0,0.00027945,2]
[327472235,1716097846707,-1005.55,0.00027945,2]
[327472236,1716097846716,-500.0,0.00027945,2]
[327472237,1716097846725,-1183.89,0.00027945,2]
[327472238,1716097846734,-500.0,0.00027945,2]
[327472239,1716097846743,-2165.73,0.00027945,2]
[327472240,1716097846752,-500.0,0.00027945,2]
[327472241,1716097846762,-2730.12,0.00027945,2]
[327472242,1716097846771,-561.58364866,0.00027945,2]
[327472243,1716097846780,-500.0,0.00027945,2]
[327472244,1716097846789,-500.0,0.00027945,2]
[327472245,1716097846798,-504.74,0.00027945,2]
[327472246,1716097846807,-876.6,0.00027945,2]
[327472247,1716097846817,-1158.83,0.00027945,2]
[327472248,1716097846826,-500.0,0.00027945,2]
[327472249,1716097846836,-4283.98,0.00027945,2]
[327472250,1716097846849,-532.36,0.00027945,2]
[327472251,1716097846858,-1539.99,0.00027945,2]
[327472252,1716097846867,-500.0,0.00027945,2]
[327472253,1716097846875,-1524.1,0.00027945,2]
[327472254,1716097846885,-500.0,0.00027945,2]
[327472255,1716097846893,-1593.3,0.00027945,2]
[327472256,1716097846902,-880.5,0.00027945,2]
[327472257,1716097846911,-500.0,0.00027945,2]
[327472258,1716097846920,-500.0,0.00027945,2]
[327472259,1716097846932,-626.25,0.00027945,2]
[327472260,1716097846941,-1287.87,0.00027945,2]
[327472261,1716097846951,-500.0,0.00027945,2]
[327472262,1716097846960,-570.38,0.00027945,2]
[327472263,1716097846969,-652.73,0.00027945,2]
[327472264,1716097846978,-754.76,0.00027945,2]
[327472265,1716097846987,-500.0,0.00027945,2]
[327472266,1716097846996,-500.0,0.00027945,2]
[327472267,1716097847005,-500.0,0.00027945,2]
[327472268,1716097847016,-3055.83415935,0.00027945,2]
[327472269,1716097847424,-500.0,0.00027397,2]
[327472270,1716097847433,-150.0,0.0002762,2]
[327472271,1716097847442,-150.0,0.00027624,2]
[327472272,1716097847451,-118.18164461,0.00027626,2]
[327472273,1716097847463,-31.81835539,0.00027626,2]
[327472274,1716097847472,-150.0,0.00027633,2]
[327472275,1716097847481,-150.0,0.00027635,2]
[327472276,1716097847490,-150.0,0.00027636,2]
[327472277,1716097847499,-150.0,0.0002764,2]
[327472278,1716097847508,-150.0,0.00027644,2]
[327472279,1716097847517,-150.0,0.00027644,2]
[327472280,1716097847526,-150.0,0.00027647,2]
[327472281,1716097847535,-150.0,0.00027649,2]
[327472282,1716097847544,-150.0,0.0002765,2]
[327472283,1716097847553,-150.0,0.00027652,2]
[327472284,1716097847563,-150.0,0.00027655,2]
[327472285,1716097847572,-150.0,0.00027668,2]
[327472286,1716097847581,-150.0,0.00027669,2]
[327472287,1716097847591,-150.0,0.0002767,2]
[327472288,1716097847600,-645.48,0.00027671,2]
[327472289,1716097847609,-150.0,0.00027673,2]
[327472290,1716097847618,-122.70164461,0.00027675,2]
[327472291,1716097847630,-27.29835539,0.00027675,2]
[327472292,1716097847638,-150.0,0.00027677,2]
[327472293,1716097847648,-150.0,0.00027679,2]
[327472294,1716097847657,-150.0,0.00027681,2]
[327472295,1716097847666,-21.50164441,0.00027684,2]
[327472296,1716097847677,-128.49835559,0.00027684,2]
[327472297,1716097847687,-150.0,0.00027688,2]
[327472298,1716097847697,-150.0,0.00027692,2]
[327472299,1716097847706,-150.0,0.00027694,2]
[327472300,1716097847715,-150.0,0.00027698,2]
[327472301,1716097847724,-150.0,0.00027698,2]
[327472302,1716097847733,-150.0,0.00027703,2]
[327472303,1716097847742,-150.0,0.00027703,2]
[327472304,1716097847752,-150.0,0.00027715,2]
[327472305,1716097847761,-150.0,0.00027721,2]
[327472306,1716097847770,-150.0,0.00027738,2]
[327472307,1716097847780,-150.0,0.00027742,2]
[327472308,1716097847790,-150.0,0.00027743,2]
[327472309,1716097847800,-150.0,0.00027767,2]
[327472310,1716097847810,-150.0,0.00027776,2]
[327472311,1716097847819,-150.0,0.0002779,2]
[327472312,1716097847829,-150.0,0.00027793,2]
[327472313,1716097847839,-150.0,0.00027797,2]
[327472314,1716097847853,-150.0,0.00027798,2]
[327472315,1716097847862,-150.0,0.00027801,2]
[327472316,1716097847872,-150.0,0.00027803,2]
[327472317,1716097847882,-150.0,0.00027805,2]
[327472318,1716097847892,-150.0,0.00027806,2]
[327472319,1716097847901,-150.0,0.00027811,2]
[327472320,1716097847911,-150.0,0.00027812,2]
[327472321,1716097847920,-150.0,0.00027812,2]
[327472322,1716097847932,-150.0,0.00027815,2]
[327472323,1716097847942,-150.0,0.00027821,2]
[327472324,1716097847951,-150.0,0.00027822,2]
[327472325,1716097847962,-150.0,0.00027829,2]
[327472326,1716097847971,-150.0,0.00027835,2]
[327472327,1716097847981,-21.50164441,0.00027837,2]
[327472328,1716097847996,-150.0,0.00027652,2]
[327472329,1716097848006,-128.49835559,0.00027837,2]
[327472330,1716097848016,-150.0,0.00027841,2]
[327472331,1716097848026,-150.0,0.00027841,2]
[327472332,1716097848036,-150.0,0.00027847,2]
[327472333,1716097848046,-150.0,0.00027848,2]
[327472334,1716097848055,-150.0,0.00027852,2]
[327472335,1716097848065,-150.0,0.00027853,2]
[327472336,1716097848075,-150.0,0.00027859,2]
[327472337,1716097848084,-150.0,0.00027868,2]
[327472338,1716097848094,-150.0,0.0002787,2]
[327472339,1716097848103,-150.0,0.00027876,2]
[327472340,1716097848113,-150.0,0.00027882,2]
[327472341,1716097848122,-166.88584065,0.00027945,2]
[327472342,1716097848132,-500.0,0.00027945,2]
[327472343,1716097848142,-500.0,0.00027945,2]
[327472344,1716097848151,-2769.57,0.00027945,2]
[327472345,1716097848160,-10094.28,0.00027945,2]
[327472346,1716097848170,-500.0,0.00027945,2]
[327472347,1716097848179,-1167.78,0.00027945,2]
[327472348,1716097848188,-2612.03,0.00027945,2]
[327472349,1716097848198,-500.0,0.00027945,2]
[327472350,1716097848207,-500.0,0.00027945,2]
[327472351,1716097848216,-1416.29,0.00027945,2]
[327472352,1716097848225,-546.58,0.00027945,2]
[327472353,1716097848234,-13714.13,0.00027945,2]
[327472354,1716097848243,-500.0,0.00027945,2]
[327472355,1716097848252,-605.92,0.00027945,2]
[327472356,1716097848262,-304.49660252,0.00027945,2]
[327472357,1716097848272,-1202.61,0.00027945,2]
[327472358,1716097848282,-1037.54,0.00027945,2]
[327472359,1716097848291,-500.0,0.00027945,2]
[327472360,1716097848300,-500.0,0.00027945,2]
[327472361,1716097848309,-248.42447181,0.00027945,2]
[327472362,1716097848319,-169.22236422,0.00027955,2]
[327472363,1716097848328,-150.5,0.0002796,15]
[327472364,1716097848338,-150.5,0.0002796,15]
[327472365,1716097848347,-2214.3287755,0.00027961,2]
[327472366,1716097848356,-1815.9363489,0.00027961,2]
[327472367,1716097848366,-10261.8446178,0.00027961,2]
[327472368,1716097848375,-150.5,0.0002797,15]
[327472369,1716097848385,-150.5,0.0002797,15]
[327472370,1716097848395,-285.0,0.0002797,15]
[327472371,1716097848404,-150.5,0.0002798,15]
[327472372,1716097848413,-150.5,0.0002798,15]
[327472373,1716097848423,-150.5,0.0002798,15]
[327472374,1716097848432,-163.94,0.0002798,15]
[327472375,1716097848441,-1067206.99998673,0.0002798,4]
[327472376,1716097848454,-757.9943451,0.0002798,4]
[327472377,1716097848551,-307.55131805,0.0002798,4]
[327472378,1716097848600,-130500.0000345,0.0002798,4]
[327472379,1716097868746,2549.59371498,0.000135,2]
[327472380,1716097962741,2282.67480183,0.00010125,2]
[327472382,1716098056930,1134.0,0.000177,2]
[327472383,1716098057468,1021.0,0.000177,2]
[327472385,1716098186717,784.29717242,0.000177,7]
[327472386,1716098251000,167.74,0.00026182,120]
[327472404,1716099031725,-150.0,0.00019725,2]
[327472405,1716099031736,-544.0,0.00020301,2]
[327472406,1716099031746,-232.31576345,0.00020301,2]
[327472407,1716099031759,-1409.68423655,0.00020301,2]
[327472408,1716099031769,-1226.0,0.00020301,2]
[327472409,1716099031779,-1262.0,0.00020301,2]
[327472410,1716099031789,-2368.18263551,0.00020301,2]
[327472411,1716099031802,-1344.63858944,0.00020301,2]
[327472412,1716099031814,-2202.17877505,0.00020301,2]
[327472413,1716099031823,-158.82,0.00020435,2]
[327472414,1716099031833,-1004.90465253,0.0002161,2]
[327472415,1716099031842,-544.0,0.00023301,2]
[327472416,1716099031851,-1642.0,0.00023301,2]
[327472417,1716099031861,-1226.0,0.00023301,2]
[327472418,1716099031872,-942.4361025,0.00023301,2]
[327472419,1716099031885,-319.5638975,0.00023301,2]
[327472420,1716099032121,-4187.303,0.00023301,2]
[327472421,1716099032130,-3013.3809776,0.00023991,2]
[327472422,1716099032154,-351.56071379,0.00023991,2]
[327472423,1716099032166,-469.17,0.00023991,2]
[327472424,1716099032184,-5955.88830861,0.00023991,2]
[327472425,1716099032194,-499.99,0.00024002,2]
[327472426,1716099032205,-1279.57,0.0002429,2]
[327472427,1716099032216,-5000.0,0.00025,7]
[327472428,1716099032226,-250.0,0.00025571,2]
[327472429,1716099032236,-189.11,0.00025602,2]
[327472430,1716099032247,-172.1,0.00026061,15]
[327472431,1716099032257,-169.71219526,0.00026106,2]
[327472432,1716099032266,-162.49,0.00026158,2]
[327472433,1716099032276,-3686.57667018,0.00026182,2]
[327472434,1716099032290,-10276.12006887,0.00026182,2]
[327472435,1716099032302,-2000.0,0.00026182,2]
[327472436,1716099032315,-6169.52551127,0.00026182,2]
[327472460,1716099037739,-1060.0,0.00020301,2]
[327472461,1716099037748,-995.703,0.00023301,2]
[327472462,1716099037758,-13957.49903158,0.00026182,2]
[327472463,1716099037770,-550.65473018,0.00026182,2]
[327472497,1716099045798,-131208.15011435,0.00026182,2]
[327472498,1716099045808,-158.07354965,0.00026206,2]
[327472499,1716099045818,-544.0,0.00026301,2]
[327472500,1716099045828,-1642.0,0.00026301,2]
[327472501,1716099045837,-1226.0,0.00026301,2]
[327472502,1716099045846,-160.983,0.00026301,2]
[327472503,1716099045855,-1279.57,0.00026553,2]
[327472504,1716099045865,-240.03606043,0.00027,2]
[327472505,1716099045874,-157.051915,0.00027138,4]
[327472506,1716099045884,-157.051914,0.00027148,4]
[327472507,1716099045893,-199.051914,0.00027198,8]
[327472508,1716099045902,-157.051915,0.00027238,4]
[327472509,1716099045912,-157.051914,0.00027248,4]
[327472510,1716099045921,-1000.0,0.00027297,2]
[327472511,1716099045930,-199.051915,0.00027298,8]
[327472512,1716099045940,-1737.5,0.00027318,2]
[327472513,1716099045949,-157.051915,0.00027338,4]
[327472514,1716099045959,-157.051914,0.00027348,4]
[327472515,1716099045968,-500.0,0.00027397,2]
[327472516,1716099045977,-500.0,0.00027397,2]
[327472517,1716099045987,-500.0,0.00027397,2]
[327472518,1716099045996,-500.0,0.00027397,2]
[327472519,1716099046005,-153.75478372,0.00027397,2]
[327472520,1716099046014,-547.96,0.00027397,2]
[327472521,1716099046023,-500.0,0.00027397,2]
[327472522,1716099046033,-500.0,0.00027397,2]
[327472523,1716099046042,-543.96,0.00027397,2]
[327472524,1716099046052,-500.0,0.00027397,2]
[327472525,1716099046061,-500.0,0.00027397,2]
[327472526,1716099046071,-500.0,0.00027397,2]
[327472527,1716099046080,-500.0,0.00027397,2]
[327472528,1716099046090,-500.0,0.00027397,2]
[327472529,1716099046100,-500.0,0.00027397,2]
[327472530,1716099046110,-500.0,0.00027397,2]
[327472531,1716099046120,-1175.01,0.00027397,2]
[327472532,1716099046130,-500.0,0.00027397,2]
[327472533,1716099046139,-500.0,0.00027397,2]
[327472534,1716099046149,-500.0,0.00027397,2]
[327472535,1716099046159,-500.0,0.00027397,2]
[327472536,1716099046168,-500.0,0.00027397,2]
[327472537,1716099046179,-500.0,0.00027397,2]
[327472538,1716099046190,-500.0,0.00027397,2]
[327472539,1716099046199,-500.0,0.00027397,2]
[327472540,1716099046209,-500.0,0.00027397,2]
[327472541,1716099046218,-500.0,0.00027397,2]
[327472542,1716099046227,-500.0,0.00027397,2]
[327472543,1716099046236,-500.0,0.00027397,2]
[327472544,1716099046245,-500.0,0.00027397,2]
[327472545,1716099046255,-500.0,0.00027397,2]
[327472546,1716099046264,-500.0,0.00027397,2]
[327472547,1716099046273,-500.0,0.00027397,2]
[327472548,1716099046283,-500.0,0.00027397,2]
[327472549,1716099046291,-436.91064462,0.00027397,2]
[327472550,1716099046301,-500.0,0.00027397,2]
[327472551,1716099046310,-500.0,0.00027397,2]
[327472552,1716099046319,-500.0,0.00027397,2]
[327472553,1716099046328,-500.0,0.00027397,2]
[327472554,1716099046338,-500.0,0.00027397,2]
[327472555,1716099046347,-500.0,0.00027397,2]
[327472556,1716099046356,-638.67,0.00027397,2]
[327472557,1716099046365,-500.0,0.00027397,2]
[327472558,1716099046374,-500.0,0.00027397,2]
[327472559,1716099046383,-500.0,0.00027397,2]
[327472560,1716099046392,-851.3,0.00027397,2]
[327472561,1716099046402,-500.0,0.00027397,2]
[327472562,1716099046410,-629.95,0.00027397,2]
[327472563,1716099046419,-592.86,0.00027397,2]
[327472564,1716099046431,-500.0,0.00027397,2]
[327472565,1716099046440,-597.45,0.00027397,2]
[327472566,1716099046450,-500.0,0.00027397,2]
[327472567,1716099046464,-554.44631076,0.00027397,2]
[327472568,1716099046474,-629.32,0.00027397,2]
[327472569,1716099046483,-542.48,0.00027397,2]
[327472570,1716099046492,-1035.9,0.00027397,2]
[327472571,1716099046503,-500.0,0.00027397,2]
[327472572,1716099046512,-500.0,0.00027397,2]
[327472573,1716099046521,-500.0,0.00027397,2]
[327472574,1716099046530,-1333.59,0.00027397,2]
[327472575,1716099046539,-500.0,0.00027397,2]
[327472576,1716099046550,-571.14,0.00027397,2]
[327472577,1716099046559,-282.12746379,0.00027397,2]
[327472578,1716099046568,-8189.2781505,0.00027397,2]
[327472580,1716099060057,156.54,0.00013973,2]
[327472581,1716099098530,62334.55362277,0.00013973,2]
[327472582,1716099286160,538.0,0.000177,2]
[327472583,1716099286659,511.0,0.000177,2]
[327472584,1716099299470,5711.72187202,0.00017259,2]
[327472589,1716099653874,178.70458605,0.00017259,2]
[327472590,1716099661498,199.84988869,0.00017259,2]
[327472591,1716099662951,222.53721492,0.00012944,2]
[327472641,1716100240317,-12947.6,0.00020274,2]
[327472642,1716100240329,-544.0,0.00020274,2]
[327472643,1716100240338,-1062.25,0.00020274,2]
[327472644,1716100240348,-1114.686,0.00020274,2]
[327472645,1716100240358,-544.0,0.00023274,2]
[327472646,1716100240367,-1269.18,0.00024384,2]
[327472647,1716100240377,-427.81624126,0.00024547,2]
[327472648,1716100240387,-5000.0,0.00025,7]
[327472649,1716100240396,-250.0,0.00026262,2]
[327472650,1716100240407,-172.1,0.00026304,15]
[327472651,1716100240417,-162.49,0.00026334,2]
[327472652,1716100240427,-9790.0,0.00026506,2]
[327472653,1716100240436,-1269.18,0.00026648,2]
[327472654,1716100240446,-5026.65733293,0.00026872,2]
[327472655,1716100240456,-200.03005036,0.00027,2]
[327472656,1716100240467,-173.051915,0.00027038,8]
[327472657,1716100240476,-157.051915,0.00027048,4]
[327472658,1716100240486,-157.051915,0.00027098,8]
[327472659,1716100240495,-4000.0,0.0002713,2]
[327472660,1716100240506,-173.051915,0.00027138,8]
[327472661,1716100240515,-157.051915,0.00027148,4]
[327472662,1716100240525,-157.051915,0.00027198,8]
[327472663,1716100240536,-200.0,0.000272,9]
[327472664,1716100240545,-173.051915,0.00027238,8]
[327472665,1716100240555,-157.051915,0.00027248,4]
[327472666,1716100240564,-157.051915,0.00027298,8]
[327472667,1716100240574,-500.0,0.000273,9]
[327472668,1716100240584,-173.051915,0.00027338,8]
[327472669,1716100240593,-173.051915,0.00027348,8]
[327472670,1716100240603,-194.52498407,0.00027396,2]
[327472671,1716100240612,-500.0,0.00027397,2]
[327472672,1716100240622,-500.0,0.00027397,2]
[327472673,1716100240632,-500.0,0.00027397,2]
[327472674,1716100240641,-1126.05,0.00027397,2]
[327472675,1716100240651,-500.0,0.00027397,2]
[327472676,1716100240661,-500.0,0.00027397,2]
[327472677,1716100240670,-500.0,0.00027397,2]
[327472678,1716100240679,-500.0,0.00027397,2]
[327472679,1716100240688,-500.0,0.00027397,2]
[327472680,1716100240703,-500.0,0.00027397,2]
[327472681,1716100240713,-500.0,0.00027397,2]
[327472682,1716100240722,-500.0,0.00027397,2]
[327472683,1716100240732,-500.0,0.00027397,2]
[327472684,1716100240741,-500.0,0.00027397,2]
[327472685,1716100240751,-500.0,0.00027397,2]
[327472686,1716100240760,-500.0,0.00027397,2]
[327472687,1716100240770,-500.0,0.00027397,2]
[327472688,1716100240780,-500.0,0.00027397,2]
[327472689,1716100240789,-507.81350401,0.00027397,2]
[327472690,1716100240799,-500.0,0.00027397,2]
[327472691,1716100240808,-500.0,0.00027397,2]
[327472692,1716100240818,-500.0,0.00027397,2]
[327472693,1716100240827,-500.0,0.00027397,2]
[327472694,1716100240840,-500.0,0.00027397,2]
[327472695,1716100240850,-500.0,0.00027397,2]
[327472696,1716100240859,-692.09626,0.00027397,2]
[327472697,1716100240869,-199.051915,0.00027398,8]
[327472698,1716100240878,-800.0,0.000274,10]
[327472699,1716100240888,-450.0,0.000274,2]
[327472700,1716100240897,-157.051915,0.00027438,4]
[327472701,1716100240907,-157.051914,0.00027448,4]
[327472702,1716100240916,-199.051915,0.00027498,8]
[327472703,1716100240925,-1100.0,0.000275,10]
[327472704,1716100240935,-157.051915,0.00027538,4]
[327472705,1716100240944,-157.051914,0.00027548,4]
[327472706,1716100240954,-6555.15973269,0.0002757,2]
[327472707,1716100240964,-199.051915,0.00027598,8]
[327472708,1716100240973,-1400.0,0.000276,10]
[327472709,1716100240983,-160.22812592,0.00027601,2]
[327472710,1716100240992,-157.051915,0.00027638,4]
[327472711,1716100241002,-157.051914,0.00027648,4]
[327472712,1716100241011,-281.78392074,0.00027668,2]
[327472713,1716100241021,-205.74676126,0.00027668,2]
[327472714,1716100241030,-425.31560897,0.00027668,2]
[327472715,1716100241040,-195.76544594,0.00027668,2]
[327472716,1716100241049,-378.20844102,0.00027668,2]
[327472717,1716100241059,-1395.82692896,0.00027668,2]
[327472718,1716100241069,-672.51644576,0.00027668,2]
[327472719,1716100241079,-500.0,0.0002767,2]
[327472720,1716100241088,-500.0,0.0002767,2]
[327472721,1716100241097,-648.64425925,0.0002767,2]
[327472722,1716100241111,-500.0,0.0002767,2]
[327472723,1716100241120,-500.0,0.0002767,2]
[327472724,1716100241129,-500.0,0.0002767,2]
[327472725,1716100241139,-500.0,0.0002767,2]
[327472726,1716100241148,-500.0,0.0002767,2]
[327472727,1716100241158,-500.0,0.0002767,2]
[327472728,1716100241167,-500.0,0.0002767,2]
[327472729,1716100241176,-500.0,0.0002767,2]
[327472730,1716100241185,-232.25630086,0.0002767,2]
[327472731,1716100241195,-500.0,0.0002767,2]
[327472732,1716100241204,-500.0,0.0002767,2]